fUSD/lending_fUSD_20260408
["ID","MTS","AMOUNT","RATE_DAILY","PERIOD"]
[420051391,1775633458702,-788.45865194,0.00016,2]
[420051392,1775633458770,-583.0,9.568e-05,2]
[420051393,1775633458780,-228.25815889,0.00016,2]
[420051394,1775633458919,-583.0,9.568e-05,2]
[420051395,1775633458931,-500.0,9.842e-05,2]
[420051396,1775633458943,-7464.24298419,0.000109,2]
[420051397,1775633458953,-189979.03005646,0.00016,2]
[420051398,1775633459490,-596.0,9.568e-05,2]
[420051399,1775633459501,-583.0,9.568e-05,2]
[420051400,1775633459511,-259.871553,9.568e-05,2]
[420051401,1775633472165,2484.0,9.568e-05,3]
[420051402,1775633488221,5548.501,9.49e-05,2]
[420051403,1775633488261,320.875,9.49e-05,2]
[420051404,1775633511758,1117.02022931,9.683e-05,3]
[420051405,1775633525627,2515.0,9.683e-05,3]
[420051406,1775633535060,4130.634,9.534e-05,2]
[420051407,1775633535086,10000.01,9.534e-05,2]
[420051408,1775633535110,10000.01,9.534e-05,2]
[420051409,1775633535134,10000.01,9.534e-05,2]
[420051412,1775633585454,310.0,9.534e-05,3]
[420051415,1775633645446,2684.0,9.534e-05,3]
[420051429,1775633706942,2550.0,9.534e-05,3]
[420051430,1775633708108,154.0,9.534e-05,3]
[420051431,1775633721455,386.804937,9.485e-05,2]
[420051432,1775633767044,2422.0,9.534e-05,3]
[420051433,1775633768607,1889.59,9.026e-05,2]
[420051434,1775633824199,3277.8,8.953e-05,2]
[420051435,1775633828478,2301.0,9.534e-05,3]
[420051436,1775633867662,200.0,9.5e-05,2]
[420051437,1775633889273,2186.0,9.534e-05,3]
[420051440,1775633909390,1500.0,8.866e-05,2]
[420051441,1775633935742,200.0,8.866e-05,2]
[420051442,1775633947258,2077.0,9.534e-05,3]
[420051447,1775633987371,8100.01,8.834e-05,2]
[420051448,1775633987395,900.94,8.834e-05,2]
[420051451,1775634006921,200.0,0.000105,30]
[420051452,1775634010582,1973.0,9.534e-05,3]
[420051453,1775634012803,154.0,9.534e-05,3]
[420051454,1775634014605,9099.07,8.898e-05,2]
[420051455,1775634014633,10000.01,8.898e-05,2]
[420051456,1775634014661,10000.01,8.898e-05,2]
[420051457,1775634014687,10000.01,8.898e-05,2]
[420051458,1775634014722,350.49,8.898e-05,2]
[420051459,1775634067078,1874.0,9.534e-05,3]
[420051460,1775634081212,6383.62059463,9.629e-05,10]
[420051461,1775634125402,1781.0,9.629e-05,3]
[420051462,1775634187787,1692.0,9.629e-05,3]
[420051465,1775634248958,1607.0,9.629e-05,3]
[420051468,1775634308039,1527.0,9.629e-05,3]
[420051469,1775634309214,154.0,9.629e-05,3]
[420051470,1775634325111,2000.0,8.509e-05,2]
[420051471,1775634347084,1072.27,8.517e-05,2]
[420051472,1775634347110,10000.0,8.517e-05,2]
[420051473,1775634347135,4141.22,8.517e-05,2]
[420051474,1775634355284,5858.78,8.517e-05,2]
[420051475,1775634355318,3364.41,8.517e-05,2]
[420051476,1775634367799,1450.0,9.629e-05,3]
[420051477,1775634426990,1378.0,9.629e-05,3]
[420051478,1775634487716,1309.0,9.629e-05,3]
[420051479,1775634509825,3669.29,8.407e-05,2]
[420051485,1775634592313,-300.0,8.666e-05,2]
[420051486,1775634592345,-274.0,8.666e-05,2]
[420051487,1775634601091,300.0,8.666e-05,2]
[420051488,1775634601139,1200.0,8.666e-05,2]
[420051489,1775634601170,300.0,8.666e-05,2]
[420051490,1775634605712,154.0,9.629e-05,3]
[420051491,1775634606545,1243.0,9.629e-05,3]
[420051492,1775634607469,-564.66,8.667e-05,2]
[420051493,1775634622688,-250.0,8.667e-05,2]
[420051494,1775634633995,-4496.28434672,8.667e-05,2]
[420051495,1775634634008,-503.71565328,8.667e-05,2]
[420051497,1775634634019,-5000.0,8.667e-05,2]
[420051498,1775634634029,-150.0,8.667e-05,2]
[420051499,1775634634040,-274.0,8.667e-05,2]
[420051500,1775634634050,-300.0,8.754e-05,2]
[420051501,1775634634061,-5000.0,8.755e-05,2]
[420051502,1775634634072,-166.66,8.831e-05,2]
[420051503,1775634634082,-150.0,8.831e-05,2]
[420051504,1775634634091,-285.50676789,8.831e-05,2]
[420051505,1775634634102,-455.08992743,8.831e-05,2]
[420051506,1775634634112,-8142.2131602,8.898e-05,2]
[420051507,1775634634356,-6739.75353032,8.898e-05,2]
[420051508,1775634634369,-838.09364915,8.898e-05,2]
[420051509,1775634634383,-8615.41966033,8.898e-05,2]
[420051510,1775634634393,-150.0,8.9e-05,2]
[420051511,1775634634403,-455.08992742,9.066e-05,2]
[420051512,1775634634413,-200.0,9.1e-05,2]
[420051513,1775634634423,-276.81122194,9.119e-05,2]
[420051514,1775634634433,-166.66,9.122e-05,2]
[420051515,1775634634443,-208.0,9.139e-05,2]
[420051516,1775634634454,-189.0,9.157e-05,2]
[420051517,1775634634464,-1260.0,9.239e-05,2]
[420051518,1775634634474,-1317.0,9.258e-05,2]
[420051519,1775634634485,-150.0,9.272e-05,2]
[420051520,1775634634495,-576.75688538,9.273e-05,2]
[420051521,1775634634505,-501.16240007,9.273e-05,2]
[420051522,1775634634516,-500.0,9.273e-05,2]
[420051523,1775634634528,-500.0,9.273e-05,2]
[420051524,1775634634540,-500.0,9.273e-05,2]
[420051525,1775634634550,-500.0,9.273e-05,2]
[420051526,1775634634561,-500.0,9.273e-05,2]
[420051527,1775634634570,-500.0,9.273e-05,2]
[420051528,1775634634580,-500.0,9.273e-05,2]
[420051529,1775634634590,-500.3477331,9.273e-05,2]
[420051530,1775634634601,-500.0,9.273e-05,2]
[420051531,1775634634611,-500.0,9.273e-05,2]
[420051532,1775634634622,-461.10773956,9.273e-05,2]
[420051533,1775634634632,-500.27683873,9.273e-05,2]
[420051534,1775634634643,-500.25334159,9.273e-05,2]
[420051535,1775634634653,-500.0,9.273e-05,2]
[420051536,1775634634663,-500.0,9.273e-05,2]
[420051537,1775634634673,-500.0,9.273e-05,2]
[420051538,1775634634683,-574.0,9.276e-05,2]
[420051540,1775634634694,-614.0,9.295e-05,2]
[420051542,1775634634704,-500.0,9.297e-05,2]
[420051544,1775634634713,-531.71301134,9.297e-05,2]
[420051546,1775634634723,-500.0,9.297e-05,2]
[420051548,1775634634733,-500.0,9.297e-05,2]
[420051550,1775634634743,-500.0,9.297e-05,2]
[420051552,1775634634753,-500.0,9.297e-05,2]
[420051554,1775634634762,-476.49221648,9.297e-05,2]
[420051556,1775634634773,-500.0,9.297e-05,2]
[420051558,1775634634783,-500.0,9.297e-05,2]
[420051559,1775634634792,-500.0,9.297e-05,2]
[420051561,1775634634802,-500.0,9.297e-05,2]
[420051562,1775634634813,-500.0,9.297e-05,2]
[420051563,1775634634823,-500.0,9.297e-05,2]
[420051564,1775634634834,-500.0,9.297e-05,2]
[420051565,1775634634844,-500.0,9.297e-05,2]
[420051566,1775634634853,-500.0,9.297e-05,2]
[420051567,1775634634862,-500.0,9.297e-05,2]
[420051568,1775634634871,-500.0,9.297e-05,2]
[420051569,1775634634881,-500.0,9.297e-05,2]
[420051570,1775634634891,-500.0,9.297e-05,2]
[420051571,1775634634901,-500.0,9.297e-05,2]
[420051572,1775634634911,-500.0,9.297e-05,2]
[420051573,1775634634921,-500.0,9.297e-05,2]
[420051574,1775634634930,-500.0,9.297e-05,2]
[420051575,1775634634940,-500.0,9.297e-05,2]
[420051576,1775634634950,-500.0,9.297e-05,2]
[420051577,1775634634959,-500.0,9.297e-05,2]
[420051578,1775634634969,-500.0,9.297e-05,2]
[420051579,1775634634979,-350.00000004,9.297e-05,2]
[420051580,1775634634988,-500.0,9.297e-05,2]
[420051581,1775634634998,-500.0,9.297e-05,2]
[420051582,1775634635008,-500.0,9.299e-05,2]
[420051583,1775634635017,-457.6968398,9.299e-05,2]
[420051584,1775634635029,-421.25177101,9.299e-05,2]
[420051585,1775634635038,-500.0,9.299e-05,2]
[420051586,1775634635048,-500.0,9.299e-05,2]
[420051587,1775634635058,-197.51949262,9.299e-05,2]
[420051588,1775634635068,-500.0,9.299e-05,2]
[420051589,1775634635078,-500.0,9.299e-05,2]
[420051590,1775634635087,-297.19539836,9.299e-05,2]
[420051591,1775634635096,-500.0,9.299e-05,2]
[420051592,1775634635105,-500.0,9.299e-05,2]
[420051593,1775634635115,-440.39679421,9.299e-05,2]
[420051594,1775634635125,-500.0,9.299e-05,2]
[420051595,1775634635135,-500.0,9.299e-05,2]
[420051596,1775634635145,-6586.93748146,9.299e-05,2]
[420051597,1775634635155,-313.15,9.3e-05,2]
[420051598,1775634635165,-518.32,9.3e-05,2]
[420051599,1775634635174,-999.99,9.3e-05,2]
[420051600,1775634635184,-219963.48,9.3e-05,2]
[420051601,1775634635193,-9999.99,9.3e-05,2]
[420051602,1775634635203,-7176.46,9.3e-05,2]
[420051603,1775634635212,-5507.95,9.3e-05,2]
[420051604,1775634635223,-9999.99,9.3e-05,2]
[420051605,1775634635232,-4999.99,9.3e-05,2]
[420051606,1775634635242,-9999.99,9.3e-05,2]
[420051607,1775634635251,-2176.34,9.3e-05,2]
[420051608,1775634635261,-9999.99,9.3e-05,2]
[420051609,1775634635271,-150.99,9.3e-05,2]
[420051610,1775634635281,-299.99,9.3e-05,2]
[420051611,1775634635291,-5947.35,9.3e-05,2]
[420051612,1775634635301,-150.99,9.3e-05,2]
[420051613,1775634635310,-9999.99,9.3e-05,2]
[420051614,1775634635320,-9999.99,9.3e-05,2]
[420051615,1775634635330,-499.99,9.3e-05,2]
[420051616,1775634635340,-1621.24,9.3e-05,2]
[420051617,1775634635350,-727.93,9.3e-05,2]
[420051618,1775634635360,-14114.9,9.3e-05,2]
[420051619,1775634635370,-175377.55,9.3e-05,2]
[420051620,1775634635380,-1191.35,9.3e-05,2]
[420051621,1775634635390,-455.08992742,9.3e-05,2]
[420051622,1775634635400,-1497.0,9.313e-05,2]
[420051623,1775634635411,-1687.0,9.332e-05,2]
[420051624,1775634635421,-1327.0,9.35e-05,2]
[420051625,1775634635431,-1509.0,9.369e-05,2]
[420051626,1775634635442,-394.0,9.387e-05,2]
[420051627,1775634635452,-878.0,9.405e-05,2]
[420051628,1775634635463,-181.55,9.406e-05,2]
[420051629,1775634635473,-317.72,9.41e-05,2]
[420051630,1775634635482,-400.0,9.413e-05,2]
[420051631,1775634635492,-166.66,9.414e-05,2]
[420051632,1775634635502,-1360.0,9.424e-05,2]
[420051633,1775634635512,-545.0,9.442e-05,2]
[420051634,1775634635522,-817.0,9.461e-05,2]
[420051635,1775634635532,-1599.0,9.479e-05,2]
[420051636,1775634635542,-438.0,9.48e-05,2]
[420051637,1775634635552,-569.0,9.498e-05,2]
[420051638,1775634635562,-1379.0,9.516e-05,2]
[420051639,1775634635572,-4706.7984,9.526e-05,2]
[420051640,1775634635583,-2500.0,9.526e-05,2]
[420051641,1775634635592,-420.0,9.532e-05,2]
[420051642,1775634635603,-1680.0,9.532e-05,2]
[420051643,1775634635613,-309.086314,9.533e-05,2]
[420051644,1775634635624,-256.7,9.533e-05,2]
[420051645,1775634635633,-4438.801,9.533e-05,2]
[420051646,1775634635643,-5000.0,9.533e-05,2]
[420051647,1775634635653,-202.7942291,9.533e-05,2]
[420051648,1775634635663,-5000.0,9.533e-05,2]
[420051649,1775634635674,-250.0,9.533e-05,2]
[420051650,1775634635684,-193.0,9.533e-05,2]
[420051651,1775634635694,-3464.0,9.534e-05,2]
[420051652,1775634635704,-500.0,9.559e-05,2]
[420051653,1775634635714,-500.0,9.559e-05,2]
[420051654,1775634635723,-500.0,9.559e-05,2]
[420051655,1775634635733,-274.1065221,9.559e-05,2]
[420051656,1775634635742,-500.0,9.559e-05,2]
[420051657,1775634635753,-500.0,9.559e-05,2]
[420051658,1775634635763,-520.29151548,9.559e-05,2]
[420051659,1775634635774,-500.0,9.559e-05,2]
[420051660,1775634635784,-500.0,9.559e-05,2]
[420051661,1775634635795,-500.0,9.559e-05,2]
[420051662,1775634635805,-500.0,9.559e-05,2]
[420051663,1775634635815,-500.0,9.559e-05,2]
[420051664,1775634635825,-500.0,9.559e-05,2]
[420051665,1775634635835,-500.0,9.559e-05,2]
[420051666,1775634635845,-500.0,9.559e-05,2]
[420051667,1775634636253,-500.0,9.559e-05,2]
[420051668,1775634636264,-500.0,9.559e-05,2]
[420051669,1775634636274,-500.0,9.559e-05,2]
[420051670,1775634636283,-500.0,9.559e-05,2]
[420051671,1775634636293,-500.0,9.559e-05,2]
[420051672,1775634636303,-345.51138736,9.559e-05,2]
[420051673,1775634636313,-500.0,9.559e-05,2]
[420051674,1775634636322,-500.0,9.559e-05,2]
[420051675,1775634636333,-500.0,9.559e-05,2]
[420051676,1775634636343,-412.62015671,9.559e-05,2]
[420051677,1775634636354,-500.0,9.559e-05,2]
[420051678,1775634636367,-500.0,9.559e-05,2]
[420051679,1775634636378,-500.0,9.559e-05,2]
[420051680,1775634636388,-644.57907854,9.559e-05,2]
[420051681,1775634636398,-500.0,9.559e-05,2]
[420051682,1775634636408,-500.0,9.559e-05,2]
[420051683,1775634636418,-500.0,9.559e-05,2]
[420051684,1775634636429,-500.0,9.559e-05,2]
[420051685,1775634636438,-500.0,9.559e-05,2]
[420051686,1775634636447,-434.47425874,9.559e-05,2]
[420051687,1775634636458,-500.0,9.559e-05,2]
[420051688,1775634636467,-152.12238144,9.559e-05,2]
[420051689,1775634636477,-208.37237059,9.559e-05,2]
[420051690,1775634636487,-500.0,9.559e-05,2]
[420051691,1775634636497,-500.0,9.559e-05,2]
[420051692,1775634636507,-500.0,9.559e-05,2]
[420051693,1775634636517,-500.0,9.559e-05,2]
[420051694,1775634636528,-500.0,9.559e-05,2]
[420051695,1775634636539,-500.0,9.559e-05,2]
[420051696,1775634636549,-500.0,9.559e-05,2]
[420051697,1775634636559,-595.10163207,9.559e-05,2]
[420051698,1775634636570,-500.0,9.568e-05,2]
[420051699,1775634636582,-500.0,9.573e-05,2]
[420051700,1775634636592,-2000.0,9.573e-05,2]
[420051701,1775634636603,-21376.0,9.589e-05,2]
[420051702,1775634636613,-360.0,9.608e-05,2]
[420051703,1775634636623,-941.15,9.622e-05,2]
[420051704,1775634636633,-28566.32715686,9.624e-05,2]
[420051705,1775634636643,-420.0,9.63e-05,2]
[420051706,1775634636653,-321.19440796,9.63e-05,2]
[420051707,1775634636663,-17033.69755532,9.63e-05,2]
[420051708,1775634636674,-4810.31020036,9.63e-05,2]
[420051709,1775634636685,-500.0,9.663e-05,2]
[420051710,1775634636694,-500.0,9.663e-05,2]
[420051711,1775634636705,-550.3869963,9.663e-05,2]
[420051712,1775634636715,-500.0,9.663e-05,2]
[420051713,1775634636724,-293.0,9.701e-05,2]
[420051714,1775634636736,-166.66,9.705e-05,2]
[420051715,1775634636746,-151.0,9.709e-05,2]
[420051716,1775634636757,-151.0,9.709e-05,2]
[420051717,1775634636767,-151.0,9.709e-05,2]
[420051718,1775634636778,-216.25,9.718e-05,2]
[420051719,1775634636788,-158.48,9.718e-05,2]
[420051720,1775634636798,-441.0,9.721e-05,2]
[420051721,1775634636808,-33041.7805,9.743e-05,2]
[420051722,1775634636818,-1000.0,9.743e-05,2]
[420051723,1775634636827,-426.0,9.807e-05,2]
[420051724,1775634636837,-1001.73893264,9.821e-05,2]
[420051725,1775634636847,-1000.0,9.821e-05,2]
[420051726,1775634636857,-457.9438199,9.821e-05,2]
[420051727,1775634636866,-1000.0,9.821e-05,2]
[420051728,1775634636876,-1000.0,9.821e-05,2]
[420051729,1775634636886,-1000.0,9.821e-05,2]
[420051730,1775634636896,-1000.0,9.821e-05,2]
[420051731,1775634636906,-1000.0,9.821e-05,2]
[420051732,1775634636915,-1000.54232895,9.821e-05,2]
[420051733,1775634636924,-1000.0,9.821e-05,2]
[420051734,1775634636934,-1000.0,9.821e-05,2]
[420051735,1775634636943,-1000.0,9.821e-05,2]
[420051736,1775634636953,-252.0,9.836e-05,2]
[420051737,1775634636963,-1000.0,9.842e-05,2]
[420051738,1775634636973,-500.0,9.847e-05,2]
[420051739,1775634636982,-201.0,9.855e-05,2]
[420051740,1775634636991,-941.15,9.896e-05,2]
[420051741,1775634637002,-166.66,9.997e-05,2]
[420051742,1775634637011,-1000.0,9.999e-05,2]
[420051743,1775634637021,-602.8020892,9.999e-05,2]
[420051744,1775634637031,-200.0,0.0001,2]
[420051745,1775634637052,-500.0,0.0001,2]
[420051746,1775634637063,-500.0,0.0001,2]
[420051747,1775634637073,-500.0,0.0001,2]
[420051748,1775634637083,-500.0,0.0001,2]
[420051749,1775634637093,-500.0,0.0001,2]
[420051750,1775634637103,-500.0,0.0001,2]
[420051751,1775634637114,-500.0,0.0001,2]
[420051752,1775634637124,-500.0,0.0001,2]
[420051753,1775634637135,-500.0,0.0001,2]
[420051754,1775634637145,-500.0,0.0001,2]
[420051755,1775634637155,-500.0,0.0001,2]
[420051756,1775634637166,-500.0,0.0001,2]
[420051757,1775634637176,-500.0,0.0001,2]
[420051758,1775634637186,-500.0,0.0001,2]
[420051759,1775634637196,-500.0,0.0001,2]
[420051760,1775634637206,-500.0,0.0001,2]
[420051761,1775634637216,-500.0,0.0001,2]
[420051762,1775634637226,-500.0,0.0001,2]
[420051763,1775634637236,-500.0,0.0001,2]
[420051764,1775634637247,-500.0,0.0001,2]
[420051765,1775634637257,-500.0,0.0001,2]
[420051766,1775634637267,-301.82852481,0.0001,2]
[420051767,1775634637278,-1199.20597015,0.0001,2]
[420051768,1775634637288,-151.0,0.0001,2]
[420051769,1775634637298,-151.0,0.0001,2]
[420051770,1775634637307,-151.0,0.0001,2]
[420051771,1775634637317,-1620.79656327,0.0001,2]
[420051772,1775634637328,-151.0,0.0001,2]
[420051773,1775634637338,-151.0,0.0001,2]
[420051774,1775634637349,-151.0,0.0001,2]
[420051775,1775634637359,-151.0,0.0001,2]
[420051776,1775634637370,-151.0,0.0001,2]
[420051777,1775634637380,-151.0,0.0001,2]
[420051778,1775634637391,-151.0,0.0001,2]
[420051779,1775634637401,-151.0,0.0001,2]
[420051780,1775634637412,-151.0,0.0001,2]
[420051781,1775634637422,-151.0,0.0001,2]
[420051782,1775634637433,-151.0,0.0001,2]
[420051783,1775634637443,-151.0,0.0001,2]
[420051784,1775634637453,-151.0,0.0001,2]
[420051785,1775634637463,-151.0,0.0001,2]
[420051786,1775634637473,-151.0,0.0001,2]
[420051787,1775634637484,-151.0,0.0001,2]
[420051788,1775634637494,-151.0,0.0001,2]
[420051789,1775634637504,-151.0,0.0001,2]
[420051790,1775634637514,-151.0,0.0001,2]
[420051791,1775634637524,-151.0,0.0001,2]
[420051792,1775634637533,-151.0,0.0001,2]
[420051793,1775634637543,-151.0,0.0001,2]
[420051794,1775634637553,-151.0,0.0001,2]
[420051795,1775634637563,-151.0,0.0001,2]
[420051796,1775634637573,-151.0,0.0001,2]
[420051797,1775634637582,-151.0,0.0001,2]
[420051798,1775634637592,-151.0,0.0001,2]
[420051799,1775634637602,-151.0,0.0001,2]
[420051800,1775634637612,-151.0,0.0001,2]
[420051801,1775634637621,-151.0,0.0001,2]
[420051802,1775634637630,-151.0,0.0001,2]
[420051803,1775634637641,-151.0,0.0001,2]
[420051804,1775634637651,-151.0,0.0001,2]
[420051805,1775634637661,-151.0,0.0001,2]
[420051806,1775634637671,-916.46729421,0.0001,2]
[420051807,1775634637680,-600.0,0.00010011,2]
[420051808,1775634637691,-214.48,0.00010045,2]
[420051809,1775634637701,-500.0,0.00010121,2]
[420051810,1775634637711,-941.15,0.0001017,2]
[420051811,1775634637721,-255.0,0.00010199,2]
[420051812,1775634637730,-1001.20287893,0.00010211,2]
[420051813,1775634637740,-1000.0,0.00010211,2]
[420051814,1775634637750,-1000.87166627,0.00010211,2]
[420051815,1775634637760,-350.572788,0.00010266,2]
[420051816,1775634637770,-4770.200006,0.00010266,2]
[420051817,1775634637780,-4772.680545,0.00010266,2]
[420051818,1775634637790,-166.66,0.00010288,2]
[420051819,1775634637800,-1500.0,0.00010368,2]
[420051820,1775634637810,-1500.0,0.00010368,2]
[420051821,1775634637819,-209.52918559,0.00010368,2]
[420051822,1775634637829,-1500.0,0.00010368,2]
[420051823,1775634637839,-1500.0,0.00010368,2]
[420051824,1775634637849,-1500.0,0.00010368,2]
[420051825,1775634637859,-1500.0,0.00010368,2]
[420051826,1775634637869,-1500.0,0.00010368,2]
[420051827,1775634637879,-150.83840523,0.00010368,2]
[420051828,1775634637888,-500.0,0.00010395,2]
[420051829,1775634637899,-171.3792,0.000104,2]
[420051830,1775634637909,-941.15,0.00010444,2]
[420051831,1775634637919,-12753.37,0.00010475,2]
[420051832,1775634637929,-7611.53,0.00010475,2]
[420051833,1775634637939,-9999.99,0.00010475,2]
[420051834,1775634637949,-29999.99,0.00010475,2]
[420051835,1775634637959,-1211.11,0.00010475,2]
[420051836,1775634637970,-19999.99,0.00010475,2]
[420051837,1775634637980,-587.0,0.00010486,2]
[420051838,1775634637990,-2351.0,0.00010486,2]
[420051839,1775634638000,-1542.28,0.0001052,2]
[420051840,1775634638010,-200.0,0.00010548,2]
[420051841,1775634638020,-1243.57659104,0.00010548,2]
[420051842,1775634638030,-281.72626647,0.00010548,2]
[420051843,1775634638040,-160.46055602,0.0001057,2]
[420051844,1775634638050,-500.0,0.00010571,2]
[420051845,1775634638061,-1600.0,0.00010581,2]
[420051846,1775634638071,-388.31411686,0.00010582,2]
[420051847,1775634638081,-587.0,0.00010593,2]
[420051848,1775634638091,-500.0,0.0001063,2]
[420051849,1775634638101,-2000.0,0.00010637,2]
[420051850,1775634638111,-500.0,0.00010669,2]
[420051851,1775634638121,-941.15,0.00010718,2]
[420051852,1775634638131,-1391.89335958,0.00010758,2]
[420051853,1775634638141,-250.0,0.00010807,2]
[420051854,1775634638152,-160.0,0.00010877,2]
[420051855,1775634638161,-1736.062219,0.00010877,2]
[420051856,1775634638172,-3312.124438,0.00010877,2]
[420051857,1775634638182,-6730.30897903,0.000109,2]
[420051858,1775634638191,-6730.30897899,0.000109,2]
[420051859,1775634638201,-2000.0,0.00010916,2]
[420051860,1775634638211,-2000.0,0.00010916,2]
[420051861,1775634638220,-1515.28558372,0.00010916,2]
[420051862,1775634638230,-2000.0,0.00010916,2]
[420051863,1775634638241,-2000.0,0.00010916,2]
[420051864,1775634638251,-2000.0,0.00010916,2]
[420051865,1775634638260,-2000.0,0.00010916,2]
[420051866,1775634638270,-500.0,0.00010943,2]
[420051867,1775634638280,-500.0,0.00010959,2]
[420051868,1775634638290,-941.15,0.00010992,2]
[420051869,1775634638299,-151.502,0.00010999,2]
[420051870,1775634638309,-200.0,0.00011096,2]
[420051871,1775634638319,-1289.58892491,0.00011096,2]
[420051872,1775634638329,-14206.09580298,0.00011098,2]
[420051877,1775634639802,-56339.78357304,0.00011098,2]
[420051878,1775634639812,-19111.31174068,0.00011099,2]
[420051879,1775634639823,-19111.31174068,0.00011099,2]
[420051880,1775634639833,-19111.31174068,0.00011099,2]
[420051881,1775634639843,-6730.30897899,0.00011114,2]
[420051882,1775634639853,-500.0,0.00011217,2]
[420051883,1775634639862,-433.0,0.00011219,2]
[420051884,1775634639872,-941.15,0.00011266,2]
[420051885,1775634639881,-6197.91936107,0.00011333,2]
[420051886,1775634639893,-12913.39237961,0.00011333,2]
[420051887,1775634639903,-2367.357571,0.00011421,2]
[420051888,1775634639913,-394.44940628,0.00011464,2]
[420051889,1775634639923,-2500.0,0.00011464,2]
[420051890,1775634639932,-2503.61823881,0.00011464,2]
[420051891,1775634639942,-2500.0,0.00011464,2]
[420051892,1775634639951,-539.0506784,0.00011464,2]
[420051893,1775634639960,-2500.0,0.00011464,2]
[420051894,1775634639970,-500.0,0.00011479,2]
[420051895,1775634639980,-500.0,0.00011491,2]
[420051896,1775634639990,-3292.0,0.00011534,2]
[420051897,1775634640000,-941.16984954,0.0001154,2]
[420051898,1775634640010,-160.0,0.00011552,2]
[420051899,1775634640019,-1640.725581,0.00011552,2]
[420051900,1775634640029,-3121.451163,0.00011552,2]
[420051901,1775634640038,-1243.0,0.00011568,3]
[420051902,1775634640048,-200.0,0.00011644,2]
[420051903,1775634640057,-1337.30371513,0.00011644,2]
[420051904,1775634640066,-823.0,0.00011652,2]
[420051905,1775634640076,-2000.0,0.000117,2]
[420051906,1775634640085,-500.0,0.00011765,2]
[420051909,1775634640094,-195.8055,0.000118,2]
[420051911,1775634640103,-363.48832685,0.00011837,2]
[420051913,1775634640112,-157.4135385,0.00011838,2]
[420051915,1775634640122,-1600.0,0.00011903,2]
[420051916,1775634640131,-9223.19,0.00011924,2]
[420051917,1775634640140,-3000.0,0.00012012,2]
[420051918,1775634640150,-1233.66702618,0.00012012,2]
[420051919,1775634640159,-830.49918647,0.00012012,2]
[420051920,1775634640168,-317.66172341,0.00012039,2]
[420051921,1775634640178,-6730.30897899,0.00012071,2]
[420051922,1775634640188,-1015.45694512,0.00012086,2]
[420051923,1775634640197,-394.16457029,0.00012087,2]
[420051924,1775634640206,-2237.353066,0.0001213,2]
[420051925,1775634640216,-935.68922767,0.0001213,2]
[420051926,1775634640226,-200.0,0.00012192,2]
[420051927,1775634640235,-1386.78395259,0.00012192,2]
[420051928,1775634640244,-227.01466449,0.00012243,2]
[420051929,1775634640254,-198.19814989,0.00012243,2]
[420051930,1775634640263,-736.0,0.00012341,2]
[420051931,1775634640272,-2410.02081589,0.00012385,2]
[420051932,1775634640282,-414.0804392,0.0001245,2]
[420051933,1775634640291,-369.48963895,0.00012501,2]
[420051934,1775634640301,-917.666493,0.00012509,2]
[420051935,1775634640311,-709.718989,0.00012509,2]
[420051936,1775634640320,-1231.025937,0.00012509,2]
[420051937,1775634640330,-916.46729421,0.00012527,2]
[420051938,1775634640340,-800.0,0.0001253,2]
[420051939,1775634640350,-400.85,0.0001253,2]
[420051940,1775634640360,-800.0,0.00012534,2]
[420051941,1775634640369,-800.0,0.00012534,2]
[420051942,1775634640379,-800.0,0.00012534,2]
[420051943,1775634640388,-800.0,0.00012537,2]
[420051944,1775634640398,-400.85,0.00012537,2]
[420051945,1775634640408,-1503.75016468,0.0001256,2]